[Event "Croatian Championship 2023"]
[Site "Zagreb"]
[Date "2023.12.07"]
[Round "4.6"]
[White "Kovacevic, Blazimir"]
[Black "Palac, Mladen"]
[Result "0-1"]
[ECO "D35"]
[WhiteElo "2400"]
[BlackElo "2478"]
[Annotator "RC"]
[PlyCount "112"]
[EventDate "2023.12.05"]
[EventType "tourn"]
[EventCountry "CRO"]
[SourceTitle "playchess.com"]
[Source "ChessBase"]
[SourceQuality "1"]
[TimeControl "40/5400+30:1800+30"]

1. d4 Nf6 2. Nf3 d5 3. c4 e6 4. cxd5 exd5 5. Qc2 c6 6. Nc3 Be6 7. Bf4 Nh5 8. Bg5 Be7 9. Bxe7 Qxe7 10. e3 Nd7 11. h3 g6 12. g4 Ng7 13. Bd3 O-O-O 14. O-O-O Kb8 15. Kb1 g5 16. Nd2 Rdf8 17. f3 f5 18. e4 fxe4 19. fxe4 h5 20. exd5 cxd5 21. Nb3 hxg4 22. hxg4 Nf6 23. Rxh8 Rxh8 24. Re1 Qc7 25. Qd2 Qg3 26. Ne2 Qxg4 27. Rg1 Ne4 28. Qb4 Qf3 29. Ba6 Bc8 30. Nec1 Qf8 31. Nc5 Nxc5 32. dxc5 Ne6 33. Nd3 Rh4 34. Qb3 Nd4 35. Qxd5 bxa6 36. Qxg5 Qf3 37. Nb4 Qe4+ 38. Ka1 a5 39. Qg3+ Ka8 40. Qc7 Qb7 41. Nd5 Qxc7 42. Nxc7+ Kb7 43. Nd5 Be6 44. Nc3 Kc6 45. Na4 Nc2+ 46. Kb1 Bf5 47. Nc3 Kxc5 48. Kc1 Rh2 49. Rg3 Nd4 50. Re3 Kc4 51. b3+ Kb4 52. Nd5+ Ka3 53. b4+ Kxa2 54. Nc3+ Kb3 55. Nb5+ Kc4 56. Nd6+ Kxb4 0-1

[Event "Croatian Championship 2023"]
[Site "Zagreb"]
[Date "2023.12.08"]
[Round "5.1"]
[White "Palac, Mladen"]
[Black "Livaic, Leon"]
[Result "1/2-1/2"]
[WhiteElo "2478"]
[BlackElo "2543"]
[Annotator "TA"]
[PlyCount "33"]
[EventDate "2023.12.05"]
[EventType "tourn"]
[EventCountry "CRO"]
[SourceTitle "playchess.com"]
[Source "ChessBase"]
[SourceQuality "1"]
[TimeControl "40/5400+30:1800+30"]

{[%evp 16,19,44,35,95,89]} 1. Nf3 Nf6 2. c4 g6 3. Nc3 Bg7 4. e4 d6 5. d4 O-O 6. Be2 Nbd7 7. O-O e5 8. Be3 Qe7 9. d5 c5 $1 {9...c5 is better than 9...Ng4. E94: King's Indian: Classical: 6 Be2 e5 7 0-0: Various Black 7th moves.} (9... a5 $14) 10. Bg5 {[#]} {Predecessor:} Kh8 $146 11. a3 Rg8 12. Ne1 Qf8 13. Qd2 Ne8 14. Be3 f5 15. f4 exf4 16. Bxf4 Ne5 17. Rc1 {½-½ Sychev,K (2537)-Jones,G (2682) Wch Blitz St Petersburg 2018 (18)} 1/2-1/2

[Event "Croatian Championship 2023"]
[Site "Zagreb"]
[Date "2023.12.08"]
[Round "5.2"]
[White "Bosiocic, Marin"]
[Black "Kovacevic, Blazimir"]
[Result "1-0"]
[ECO "C02"]
[WhiteElo "2545"]
[BlackElo "2400"]
[Annotator "TA"]
[PlyCount "105"]
[EventDate "2023.12.05"]
[EventType "tourn"]
[EventCountry "CRO"]
[SourceTitle "playchess.com"]
[Source "ChessBase"]
[SourceQuality "1"]
[TimeControl "40/5400+30:1800+30"]

{[%evp 17,105,0,0,-7,-24,0,41,45,40,39,66,56,56,66,63,59,68,63,66,71,59,49,70,79,70,55,61,60,75,0,0,0,42,14,233,215,303,305,247,295,310,296,296,0,0,0,0,0,0,0,484,454,389,141,500,337,514,508,481,479,761,738,937,947,925,879,1250,1250,1154,1046,966,889,1360,1336,1216,1172,846,2042,1934,1950,1747,1350,2001,773,1856,1780,12846,12839,5110,4616]} 1. e4 {[%cal Be2e4,Be4e5][%mdl 32]} e6 2. d4 d5 3. e5 c5 4. c3 Nc6 5. Nf3 Bd7 6. Be2 Nge7 7. Na3 cxd4 8. cxd4 Nf5 9. Nc2 Be7 {outshines the older 9...Qb6.} 10. g3 {C02: French: Advance Variation.} Rc8 11. h4 {[#]} Nb4 $146 ({Predecessor:} 11... a6 12. h5 Qc7 13. Bd3 Qb6 14. Kf1 a5 15. Be2 Qc7 16. Bf4 Qb6 17. Rb1 f6 {½-½ Kovalev,V (2620)-Agmanov,Z (2446) Aktobe Dvorkovich op 2023 (9)}) 12. Nxb4 {White is slightly better.} Bxb4+ 13. Kf1 Qb6 14. g4 Nh6 15. Bxh6 gxh6 16. Rc1 O-O 17. Kg2 Bb5 18. Bxb5 Qxb5 19. Qb3 a6 20. Qe3 Kg7 21. g5 h5 22. Nh2 {[%cal Bf3h2,Bh2f1,Bf1g3,Bg3h5,Bh5f6][%mdl 32]} Be7 23. Rhd1 (23. b3 $16) 23... Qxb2 $11 24. Nf1 Rc4 25. Ng3 {Black must now prevent Rxc4.} Rfc8 $2 (25... b5 $11 {and Black has nothing to worry.}) 26. Nxh5+ Kf8 (26... Kh8 {is a better defense.} 27. Qf3 Kg8) 27. Rxc4 $18 Rxc4 {[#]} 28. Nf6 $1 Qc2 {[#]} (28... Qxa2 29. g6 Bxf6 30. exf6 hxg6 31. Qf4 $18) 29. Rd3 Bxf6 (29... Qxa2 $2 30. g6 Bxf6 31. gxh7 $18) 30. gxf6 {[%mdl 4096] Endgame KQR-KQR} (30. exf6 $18 Rc8 31. h5) 30... Ke8 $1 $11 31. Rb3 (31. Qg3 $5 Kd7 $8 32. Qg8 Qxd3 33. Qxf7+ Kc8 34. Qf8+ Kd7 35. Qf7+ Kd8 36. Qf8+ Kd7 37. Qf7+ $11) 31... b5 (31... Qxa2 32. Rxb7 Qa5 33. Qg5 Rc7 34. Qg8+ Kd7 35. Qxf7+ Kc8 36. Rxc7+ Qxc7 37. Qxc7+ Kxc7 38. f7) 32. Ra3 {Qg5 is the strong threat.} Rc6 33. Qe1 {Threatens to win with Qb4.} Qe4+ $2 {[%mdl 8192] Black is now going downhill.} (33... Qb2 $11 {and Black stays safe.} 34. Rg3 Qxd4) 34. Qxe4 $18 dxe4 {KR-KR} 35. Rg3 $2 (35. Kg3 $18) 35... Rc2 $2 {[%mdl 8192]} (35... Kf8 $16 {is more resistant.}) 36. Rg8+ {[%cal Bg3g8,Bg8a8,Ba8a6,Ba6a7,Ba7e7][%mdl 32]} Kd7 {[%cal Oe4e3] ...e3! would be deadly.} 37. Kg3 {White is clearly winning.} Rc7 38. Ra8 Rc3+ (38... Kc6 $142 39. Kf4 b4 40. Kxe4 Kb7) 39. Kf4 Rf3+ 40. Kxe4 Rxf2 41. Rxa6 Rh2 42. Ra7+ Ke8 43. Re7+ Kf8 44. Rb7 {[%cal Rb7b8]} Rxh4+ 45. Ke3 {[%cal Rb7b8]} Ke8 46. Rxb5 {And now Rb8+ would win.} Rh3+ 47. Ke4 (47. Kf4 $142 Rh4+ 48. Ke3) 47... Rh4+ 48. Kd3 Rh3+ 49. Kc4 Ra3 50. Rb8+ Kd7 51. Rf8 Rxa2 52. Rxf7+ Kc6 53. Re7 {Weighted Error Value: White=0.19 (very precise) /Black=0.66} 1-0

[Event "Croatian Championship 2023"]
[Site "Zagreb"]
[Date "2023.12.08"]
[Round "5.3"]
[White "Fercec, Nenad"]
[Black "Tica, Sven"]
[Result "1/2-1/2"]
[ECO "B12"]
[WhiteElo "2401"]
[BlackElo "2448"]
[Annotator "RC"]
[PlyCount "89"]
[EventDate "2023.12.05"]
[EventType "tourn"]
[EventCountry "CRO"]
[SourceTitle "playchess.com"]
[Source "ChessBase"]
[SourceQuality "1"]
[TimeControl "40/5400+30:1800+30"]

1. e4 c6 2. d4 d5 3. e5 Bf5 4. Nd2 e6 5. Nb3 Nd7 6. Nf3 h6 7. Be2 Ne7 8. O-O Nc8 9. a4 Be7 10. Ne1 Qc7 11. Bd3 Bxd3 12. Nxd3 Ncb6 13. a5 Nc4 14. a6 b6 15. Nd2 Nxd2 16. Bxd2 c5 17. c3 c4 18. Nf4 Bg5 19. Nxe6 fxe6 20. Qh5+ Ke7 21. f4 Rag8 22. fxg5 g6 23. Qd1 h5 24. b3 Rf8 25. Qc2 Rf5 26. Rxf5 exf5 27. bxc4 Qxc4 28. Qb2 Ke6 29. Qa3 Qc6 30. Qb4 Rc8 31. Bc1 Kf7 32. Ba3 Qe6 33. h3 Rc4 34. Qb3 h4 35. Bd6 Qe8 36. Qb2 Ke6 37. Qf2 Qh8 38. Qf3 Qc8 39. Bb4 Nb8 40. Qf2 Qh8 41. Kh2 Nc6 42. Rb1 Qh5 43. Qd2 Qh8 44. Bd6 Nd8 45. Rb4 1/2-1/2

[Event "Croatian Championship 2023"]
[Site "Zagreb"]
[Date "2023.12.08"]
[Round "5.4"]
[White "Kozul, Zdenko"]
[Black "Rezan, Sasa"]
[Result "1-0"]
[ECO "E05"]
[WhiteElo "2532"]
[BlackElo "2406"]
[Annotator "TA"]
[PlyCount "57"]
[EventDate "2023.12.05"]
[EventType "tourn"]
[EventCountry "CRO"]
[SourceTitle "playchess.com"]
[Source "ChessBase"]
[SourceQuality "1"]
[TimeControl "40/5400+30:1800+30"]

{[%evp 13,57,17,25,12,21,-30,-38,-34,0,0,0,0,0,0,0,0,0,0,0,0,0,0,0,0,0,0,0,0,7,0,26,45,36,33,22,62,163,162,216,197,245,243,335,222,387,384]} 1. d4 Nf6 2. c4 e6 3. g3 d5 4. Bg2 Be7 5. Nf3 O-O 6. O-O dxc4 7. Qc2 b5 8. a4 {E05: Open Catalan: 5 Nf3 Be7.} Bb7 9. Bg5 ({White should try} 9. axb5 a6 10. Nc3 (10. Qxc4 $2 axb5 11. Qxb5 Bc6 $19)) 9... a6 $1 $11 {[#]} 10. Nc3 $146 {Black is slightly better.} ({Predecessor:} 10. e3 Be4 11. Qc1 Nbd7 12. Bxf6 Nxf6 13. axb5 axb5 14. Rxa8 Qxa8 15. Nbd2 Bc6 16. b3 cxb3 17. Qc3 Ne4 18. Nxe4 Bxe4 19. Qxc7 b2 20. Nh4 Bxh4 {0-1 Kompaan,R (1785)-Cuyvers,J (1765) Hoogeveen op 25th 2022 (4)}) 10... Nd5 11. Bxe7 Qxe7 12. axb5 Nxc3 13. bxc3 {[%cal Of3g5] [#] Strongly threatening Ng5!} axb5 14. Qb2 Rxa1 15. Rxa1 Bxf3 16. Bxf3 c6 17. Qa3 Qxa3 18. Rxa3 {[%mdl 4096] Endgame KRB-KRN} g6 19. Ra7 Kg7 20. Kf1 Rd8 {[%cal Ob5b4]} 21. Rb7 Kf6 22. Ke1 e5 23. dxe5+ Kxe5 24. Rxf7 {[%cal Bb7f7,Bf7f4,Bf4e4,Be4c4,Bc4c6][%mdl 32]} b4 {[#]} 25. Rf4 $1 $18 ({Resist} 25. Rxh7 bxc3 26. Re7+ Kd6 $16) (25. cxb4 $6 Na6 $14) 25... b3 (25... bxc3 $142 26. Rxc4 Rd4 27. Rxc3 Kd6) 26. Re4+ Kf5 (26... Kf6 $142) 27. Rxc4 Na6 28. Be4+ ({Less strong is} 28. Bxc6 Kf6 29. Ba4 b2 30. Rc6+ Ke7) 28... Kg5 $2 (28... Ke6 29. Rxc6+ Rd6 30. Rxd6+ Kxd6) 29. Rxc6 {Weighted Error Value: White=0.12 (very precise) /Black=0.29 (precise)} 1-0

[Event "Croatian Championship 2023"]
[Site "Zagreb"]
[Date "2023.12.08"]
[Round "5.5"]
[White "Martinovic, Sasa"]
[Black "Bukal, Vladimir Jr."]
[Result "1-0"]
[ECO "A40"]
[WhiteElo "2556"]
[BlackElo "2337"]
[Annotator "TA"]
[PlyCount "59"]
[EventDate "2023.12.05"]
[EventType "tourn"]
[EventCountry "CRO"]
[SourceTitle "playchess.com"]
[Source "ChessBase"]
[SourceQuality "1"]
[TimeControl "40/5400+30:1800+30"]

{[%evp 9,59,50,75,75,91,89,86,87,76,62,115,108,98,87,112,80,201,206,178,180,301,291,298,284,284,204,204,196,204,206,206,191,358,360,343,228,514,508,599,493,678,677,755,754,736,748,1064,1060,1058,1038,1145,1125]} 1. d4 e6 2. c4 b6 3. e4 Bb7 4. Nd2 {[%cal Bb1d2,Bd2f1,Bf1g3][%mdl 32]} e5 {[#]} 5. d5 $146 ({Predecessor:} 5. dxe5 Nc6 6. Ngf3 Bc5 7. Nb3 Bb4+ 8. Bd2 Qe7 9. Bd3 Bxd2+ 10. Qxd2 Nxe5 11. Nxe5 Qxe5 {0-1 Chylewski,P (2290)-Bartel,M (2614) Warsaw Maciei Memorial blitz 2023 (6)}) 5... Bc5 6. Ngf3 {A40: Unusual replies to 1 d4.} Qe7 {[%cal Of7f5]} 7. Bd3 {[%cal Bf1d3,Bd3e4,Be4d5][%mdl 32]} a5 8. Nf1 {White is better.} Bb4+ 9. Ke2 f5 10. Bg5 $16 (10. exf5 e4 11. a3 Bd6 $17) 10... Nf6 11. Ng3 (11. exf5 $2 e4 12. Ng3 exd3+ 13. Kf1 O-O 14. Qxd3 Na6 $19) 11... fxe4 12. Bxe4 {[%cal Od5d6] And now d6! would win.} c6 {[#] Loses the game.} (12... Na6 $16) 13. a3 $1 $18 {Black must now prevent Nf5.} Bc5 {[#]} 14. b4 $1 {Active counter play!} (14. Nf5 $6 Qf7 15. Nxe5 Qh5+ 16. Nf3 O-O 17. Bxf6 Rxf6 $14) 14... cxd5 (14... Bd4 {was necessary.}) 15. Bxf6 (15. Bxd5 Bxd5 16. cxd5 (16. Qxd5 $2 Nxd5 17. Bxe7 Nf4+ {[%mdl 64] Zwischenzug, Double Attack} 18. Kf1 Bxe7 $19) 16... axb4 $16) (15. cxd5 Ba6+ 16. Bd3 e4 17. Bxa6 exf3+ 18. Kf1 Nxa6 $15) 15... Qxf6 16. Bxd5 (16. cxd5 Ba6+ 17. Bd3 axb4 18. axb4 Bxb4 19. Bxa6 Nxa6 $17) 16... e4 17. Nxe4 Qb2+ 18. Qd2 Qxd2+ 19. Nfxd2 {[%cal Bf3d2,Bd2e4,Be4d6][%mdl 32]} ({Don't play} 19. Nexd2 Bxd5 20. cxd5 (20. bxc5 Bxf3+ 21. Nxf3 bxc5 $16) 20... axb4) 19... Bxd5 20. cxd5 ({Much less strong is} 20. bxc5 Bxe4 21. Nxe4 bxc5) 20... Bd4 {Black is weak on the light squares} (20... axb4 21. axb4 {[%mdl 64] Discovered Attack} Rxa1 22. Rxa1 Bxb4) 21. Nd6+ Kf8 22. Rac1 g6 $2 (22... Na6 23. bxa5 bxa5) 23. b5 {White is clearly winning.} Ke7 24. N2e4 a4 25. Kd3 Bb2 26. Rc8 {Against Na6} Rxc8 27. Nxc8+ {A dynamic duo of knights.} Kd8 28. Nxb6 Ra5 29. Nd6 Bxa3 30. Nb7+ {An entertaining game by Martinovic.   Weighted Error Value: White=0.25 (precise) /Black=0.60} 1-0

[Event "Croatian Championship 2023"]
[Site "Zagreb"]
[Date "2023.12.09"]
[Round "6.1"]
[White "Livaic, Leon"]
[Black "Rogic, Davor"]
[Result "1-0"]
[ECO "C85"]
[WhiteElo "2543"]
[BlackElo "2431"]
[Annotator "RC"]
[PlyCount "105"]
[EventDate "2023.12.05"]
[EventType "tourn"]
[EventCountry "CRO"]
[SourceTitle "playchess.com"]
[Source "ChessBase"]
[SourceQuality "1"]
[TimeControl "40/5400+30:1800+30"]

1. e4 e5 2. Nf3 Nc6 3. Bb5 a6 4. Ba4 Nf6 5. O-O Be7 6. Bxc6 dxc6 7. Re1 Qd6 8. b3 Bg4 9. Bb2 Nd7 10. d3 O-O-O 11. Nbd2 f6 12. Nc4 Qe6 13. Ne3 h5 14. h3 Bxf3 15. Qxf3 g6 16. Bc3 Rhf8 17. a4 c5 18. Rab1 Nb8 19. b4 cxb4 20. Bxb4 Bxb4 21. Rxb4 Nc6 22. Rb2 f5 23. exf5 gxf5 24. Reb1 f4 25. Nc4 e4 26. Qxh5 exd3 27. cxd3 Rxd3 28. Nd2 Rg8 29. Kh1 Rg6 30. Nf3 Rd5 31. Qh4 Rf5 32. Qh8+ Rg8 33. Qh7 b6 34. Rc2 Rc5 35. Rxc5 bxc5 36. Rc1 c4 37. Qc2 Na5 38. Qc3 Qg6 39. Rg1 Qf5 40. Ne5 Nb7 41. Qxc4 Rh8 42. Nf3 Nd6 43. Qxa6+ Kd7 44. Re1 Rh7 45. Ne5+ Ke6 46. Nc4+ Kd7 47. Nxd6 cxd6 48. Qb7+ Kd8 49. Qb8+ Kd7 50. Qe8+ Kc7 51. Rc1+ Kb7 52. Qc6+ Ka7 53. Qxd6 1-0

[Event "Croatian Championship 2023"]
[Site "Zagreb"]
[Date "2023.12.09"]
[Round "6.2"]
[White "Bukal, Vladimir Jr."]
[Black "Novosel, Lovro"]
[Result "1-0"]
[ECO "E06"]
[WhiteElo "2337"]
[BlackElo "2370"]
[Annotator "RC"]
[PlyCount "51"]
[EventDate "2023.12.05"]
[EventType "tourn"]
[EventCountry "CRO"]
[SourceTitle "playchess.com"]
[Source "ChessBase"]
[SourceQuality "1"]
[TimeControl "40/5400+30:1800+30"]

1. d4 Nf6 2. c4 e6 3. g3 d5 4. Bg2 Be7 5. Nf3 O-O 6. Nc3 c6 7. O-O a5 8. b3 b6 9. Qd3 Ba6 10. a4 Nbd7 11. Bb2 Rc8 12. Rfd1 Bb4 13. Nd2 Qe7 14. e4 Rfd8 15. Qe3 dxc4 16. Nxc4 Bxc4 17. bxc4 e5 18. Ne2 exd4 19. Nxd4 Re8 20. Nf5 Qe6 21. Nxg7 Kxg7 22. Qg5+ Kf8 23. Rxd7 Re7 24. Qh6+ Ke8 25. Rxe7+ Bxe7 26. Bh3 1-0

[Event "Croatian Championship 2023"]
[Site "Zagreb"]
[Date "2023.12.09"]
[Round "6.3"]
[White "Rezan, Sasa"]
[Black "Martinovic, Sasa"]
[Result "0-1"]
[ECO "D38"]
[WhiteElo "2406"]
[BlackElo "2556"]
[Annotator "RC"]
[PlyCount "118"]
[EventDate "2023.12.05"]
[EventType "tourn"]
[EventCountry "CRO"]
[SourceTitle "playchess.com"]
[Source "ChessBase"]
[SourceQuality "1"]
[TimeControl "40/5400+30:1800+30"]

1. d4 Nf6 2. c4 e6 3. Nf3 d5 4. Nc3 Bb4 5. cxd5 exd5 6. Bg5 h6 7. Bh4 Bf5 8. e3 Nbd7 9. Be2 c6 10. Qb3 Qb6 11. Nd2 Bd6 12. O-O g5 13. Bg3 Bxg3 14. hxg3 h5 15. f3 Bg6 16. Rac1 Qxb3 17. Nxb3 O-O-O 18. Kf2 Rhe8 19. Rfe1 Kb8 20. Na4 Re7 21. Nac5 Nxc5 22. Nxc5 Ne8 23. Bd3 Bxd3 24. Nxd3 f6 25. Rh1 Ng7 26. Nb4 a5 27. Nc2 Kc7 28. Rce1 Rde8 29. Re2 Kd7 30. Ree1 Ke6 31. Re2 Kf7 32. b3 Kg6 33. Rhe1 Nf5 34. e4 dxe4 35. Rxe4 Kf7 36. Rxe7+ Rxe7 37. Rh1 Kg6 38. Rd1 Kf7 39. Rh1 Re2+ 40. Kxe2 Nxg3+ 41. Ke1 Nxh1 42. Ne3 Ke6 43. Nc4 a4 44. bxa4 Kd5 45. Na5 b6 46. Nb3 Ng3 47. a5 bxa5 48. Nxa5 Nf5 49. a4 Nxd4 50. Nb7 h4 51. a5 Nc2+ 52. Kd2 Nb4 53. Kc3 Na6 54. Nd8 Kd6 55. Kd4 Kd7 56. Nxc6 Kxc6 57. Ke4 Nc7 58. Kf5 Nd5 59. a6 Ne3+ 0-1

[Event "Croatian Championship 2023"]
[Site "Zagreb"]
[Date "2023.12.09"]
[Round "6.4"]
[White "Tica, Sven"]
[Black "Kozul, Zdenko"]
[Result "1/2-1/2"]
[ECO "D02"]
[WhiteElo "2448"]
[BlackElo "2532"]
[Annotator "RC"]
[PlyCount "66"]
[EventDate "2023.12.05"]
[EventType "tourn"]
[EventCountry "CRO"]
[SourceTitle "playchess.com"]
[Source "ChessBase"]
[SourceQuality "1"]
[TimeControl "40/5400+30:1800+30"]

1. d4 Nf6 2. Nf3 g6 3. Nbd2 d5 4. e3 c6 5. c4 Bf5 6. Be2 Nbd7 7. O-O e6 8. b3 h5 9. Bb2 Bd6 10. Ne5 Ng4 11. Ndf3 Qb8 12. h3 Ngxe5 13. dxe5 Nxe5 14. Nd4 Rh7 15. f4 Nd7 16. Nxf5 gxf5 17. cxd5 cxd5 18. Bxh5 Bc5 19. Qe2 Qd6 20. g4 Qb6 21. Rfe1 d4 22. Rad1 dxe3 23. Rd3 O-O-O 24. Rc1 fxg4 25. hxg4 Rg8 26. g5 Qc7 27. Rxd7 Kxd7 28. Qb5+ Qc6 29. Qd3+ Qd6 30. Qb5+ Qc6 31. Qd3+ Qd6 32. Qb5+ Qc6 33. Qd3+ Qd6 1/2-1/2

[Event "Croatian Championship 2023"]
[Site "Zagreb"]
[Date "2023.12.09"]
[Round "6.5"]
[White "Kovacevic, Blazimir"]
[Black "Fercec, Nenad"]
[Result "1/2-1/2"]
[ECO "D30"]
[WhiteElo "2400"]
[BlackElo "2401"]
[Annotator "ChessBase"]
[PlyCount "64"]
[EventDate "2023.12.05"]
[EventType "tourn"]
[EventCountry "CRO"]
[SourceTitle "playchess.com"]
[Source "ChessBase"]
[SourceQuality "1"]
[TimeControl "40/5400+30:1800+30"]

1. Nf3 d5 2. d4 Nf6 3. c4 e6 4. cxd5 exd5 5. Qc2 g6 6. Bg5 Bg7 7. Nc3 O-O 8. e3 h6 9. Bf4 c6 10. Bd3 Nbd7 11. h3 Re8 12. O-O Qe7 13. Rab1 a5 14. Nd2 Nf8 15. Na4 N6d7 16. Bh2 Ra7 17. Nc3 Ra8 18. Ne2 Nf6 19. Rbc1 a4 20. Rfe1 a3 21. b3 Ne6 22. Nf3 Nc7 23. Nc3 Na6 24. Qd1 Nb4 25. Bb1 Qd8 26. Ne5 Nd7 27. Nd3 Nxd3 28. Bxd3 Bf8 29. Na4 Bb4 30. Re2 Nf6 31. Rec2 Ne4 32. Bxe4 Rxe4 1/2-1/2

[Event "Croatian Championship 2023"]
[Site "Zagreb"]
[Date "2023.12.09"]
[Round "6.6"]
[White "Palac, Mladen"]
[Black "Bosiocic, Marin"]
[Result "0-1"]
[ECO "D61"]
[WhiteElo "2478"]
[BlackElo "2545"]
[Annotator "RC"]
[PlyCount "76"]
[EventDate "2023.12.05"]
[EventType "tourn"]
[EventCountry "CRO"]
[SourceTitle "playchess.com"]
[Source "ChessBase"]
[SourceQuality "1"]
[TimeControl "40/5400+30:1800+30"]

1. d4 Nf6 2. c4 e6 3. Nf3 d5 4. Nc3 Nbd7 5. Bg5 h6 6. Bh4 Be7 7. e3 O-O 8. Qc2 c6 9. a3 b6 10. Bd3 Bb7 11. O-O c5 12. cxd5 Nxd5 13. Bxe7 Qxe7 14. Nxd5 Bxd5 15. Bh7+ Kh8 16. Be4 c4 17. Bxd5 exd5 18. b3 b5 19. a4 a6 20. Rfb1 Rfc8 21. bxc4 bxc4 22. Qf5 Qe6 23. Qxe6 fxe6 24. Rb7 Nf6 25. Rab1 Ne4 26. Ne5 Nc3 27. R1b6 Nxa4 28. Rxe6 Rab8 29. Rxb8 Rxb8 30. h4 Nb6 31. e4 a5 32. exd5 c3 33. Rc6 Nxd5 34. Rc5 a4 35. Rxd5 a3 36. Ra5 c2 37. Nd3 Rb3 38. Nc1 Rb1 0-1

[Event "Croatian Championship 2023"]
[Site "Zagreb"]
[Date "2023.12.09"]
[Round "7.1"]
[White "Bosiocic, Marin"]
[Black "Livaic, Leon"]
[Result "0-1"]
[ECO "B45"]
[WhiteElo "2545"]
[BlackElo "2543"]
[Annotator "RC"]
[PlyCount "92"]
[EventDate "2023.12.05"]
[EventType "tourn"]
[EventCountry "CRO"]
[SourceTitle "playchess.com"]
[Source "ChessBase"]
[SourceQuality "1"]
[TimeControl "40/5400+30:1800+30"]

1. e4 c5 2. Nf3 e6 3. d4 cxd4 4. Nxd4 Nf6 5. Nc3 Nc6 6. Nxc6 bxc6 7. e5 Nd5 8. Ne4 Qc7 9. f4 Rb8 10. c4 Bb4+ 11. Ke2 O-O 12. cxd5 cxd5 13. Ng5 h6 14. Nf3 f6 15. Bd2 fxe5 16. fxe5 d6 17. a3 Bxd2 18. Qxd2 dxe5 19. Qc3 Qxc3 20. bxc3 Rb2+ 21. Ke3 e4 22. Ne5 Rff2 23. Rc1 Bb7 24. Bb5 Rf5 25. Nc6 Bxc6 26. Bxc6 Rxg2 27. c4 Rf3+ 28. Kd4 Rd2+ 29. Kc5 Rxa3 30. cxd5 exd5 31. Kd6 Kh7 32. Rhg1 e3 33. Rb1 g5 34. Ke5 e2 35. Rb7+ Kh8 36. Re1 Rf3 37. Bd7 Rf7 38. h4 Kg7 39. h5 d4 40. Kd6 d3 41. Rbb1 Rxd7+ 42. Kxd7 Kf6 43. Rec1 Rc2 44. Re1 g4 45. Ra1 d2 46. Rxe2 d1=Q+ 0-1

[Event "Croatian Championship 2023"]
[Site "Zagreb"]
[Date "2023.12.09"]
[Round "7.3"]
[White "Kozul, Zdenko"]
[Black "Kovacevic, Blazimir"]
[Result "1-0"]
[ECO "A95"]
[WhiteElo "2532"]
[BlackElo "2400"]
[Annotator "RC"]
[PlyCount "75"]
[EventDate "2023.12.05"]
[EventType "tourn"]
[EventCountry "CRO"]
[SourceTitle "playchess.com"]
[Source "ChessBase"]
[SourceQuality "1"]
[TimeControl "40/5400+30:1800+30"]

1. d4 e6 2. c4 f5 3. g3 Nf6 4. Bg2 Be7 5. Nf3 O-O 6. O-O d5 7. Nc3 c6 8. Bf4 Ne4 9. h4 Nd7 10. Rc1 Nd6 11. Bxd6 Bxd6 12. e3 Qe7 13. Ne2 dxc4 14. Nd2 e5 15. Nxc4 e4 16. Qb3 Kh8 17. Nxd6 Qxd6 18. Nf4 Nf6 19. Rc3 b6 20. Rfc1 Bd7 21. Bf1 Rfe8 22. h5 Re7 23. Bh3 Ne8 24. Qc2 Rd8 25. Qa4 a5 26. Rxc6 Bxc6 27. Rxc6 Qd7 28. Qb5 Rc8 29. Rxb6 Qxb5 30. Rxb5 Nd6 31. Rxa5 Kg8 32. b3 Rc1+ 33. Kg2 Rec7 34. Bxf5 Nxf5 35. Rxf5 R1c2 36. a4 Rb7 37. Ne6 Rb8 38. Nc5 1-0

[Event "Croatian Championship 2023"]
[Site "Zagreb"]
[Date "2023.12.09"]
[Round "7.4"]
[White "Martinovic, Sasa"]
[Black "Tica, Sven"]
[Result "1-0"]
[ECO "D61"]
[WhiteElo "2556"]
[BlackElo "2448"]
[Annotator "RC"]
[PlyCount "51"]
[EventDate "2023.12.05"]
[EventType "tourn"]
[EventCountry "CRO"]
[SourceTitle "playchess.com"]
[Source "ChessBase"]
[SourceQuality "1"]
[TimeControl "40/5400+30:1800+30"]

1. d4 d5 2. c4 e6 3. Nc3 Be7 4. Nf3 Nf6 5. Bg5 Nbd7 6. e3 O-O 7. Qc2 h6 8. Bh4 c6 9. a3 b6 10. cxd5 exd5 11. Be2 Bb7 12. O-O Ne8 13. Bg3 Bd6 14. Ne5 Bc7 15. Rac1 Nxe5 16. dxe5 f6 17. f4 fxe5 18. fxe5 Rxf1+ 19. Rxf1 Qg5 20. Bd3 Qxe3+ 21. Kh1 Qc5 22. Bh7+ Kh8 23. Bg6 Nd6 24. exd6 Bxd6 25. b4 Qc4 26. Bd3 1-0

[Event "Croatian Championship 2023"]
[Site "Zagreb"]
[Date "2023.12.09"]
[Round "7.5"]
[White "Novosel, Lovro"]
[Black "Rezan, Sasa"]
[Result "1-0"]
[ECO "D02"]
[WhiteElo "2370"]
[BlackElo "2406"]
[Annotator "ChessBase"]
[PlyCount "89"]
[EventDate "2023.12.05"]
[EventType "tourn"]
[EventCountry "CRO"]
[SourceTitle "playchess.com"]
[Source "ChessBase"]
[SourceQuality "1"]
[TimeControl "40/5400+30:1800+30"]

1. d4 Nf6 2. Nf3 d5 3. Bf4 c5 4. e3 Nc6 5. Nbd2 e6 6. c3 Bd6 7. Bg3 O-O 8. Bd3 Qe7 9. Ne5 Nd7 10. Nxd7 Qxd7 11. dxc5 Bxc5 12. e4 d4 13. Nb3 Bb6 14. O-O dxc3 15. bxc3 Rd8 16. Bb5 a6 17. Ba4 Qe7 18. Qh5 Bd7 19. Rab1 Be8 20. Qg4 Ba7 21. Bxc6 Bxc6 22. Bh4 f6 23. e5 Kh8 24. Na5 Bb5 25. c4 Rd4 26. Qg3 g5 27. Bxg5 fxg5 28. cxb5 Bb6 29. Nb3 Rd5 30. bxa6 Rxa6 31. Nc1 Bd4 32. Nd3 Ra3 33. Rb3 Rxa2 34. Nb4 Bxf2+ 35. Rxf2 Rd1+ 36. Rf1 Qc5+ 37. Qe3 Rxf1+ 38. Kxf1 Qc4+ 39. Rd3 Ra1+ 40. Kf2 Qh4+ 41. Qg3 Qh5 42. Nc2 Ra2 43. Rd2 Qg6 44. Qb3 Ra5 45. Qxb7 1-0

[Event "Croatian Championship 2023"]
[Site "Zagreb"]
[Date "2023.12.09"]
[Round "7.6"]
[White "Rogic, Davor"]
[Black "Bukal, Vladimir Jr."]
[Result "0-1"]
[ECO "B33"]
[WhiteElo "2431"]
[BlackElo "2337"]
[Annotator "RC"]
[PlyCount "100"]
[EventDate "2023.12.05"]
[EventType "tourn"]
[EventCountry "CRO"]
[SourceTitle "playchess.com"]
[Source "ChessBase"]
[SourceQuality "1"]
[TimeControl "40/5400+30:1800+30"]

1. e4 c5 2. Nf3 Nc6 3. d4 cxd4 4. Nxd4 Nf6 5. Nc3 e5 6. Ndb5 d6 7. Bg5 a6 8. Na3 b5 9. Nd5 Be7 10. Bxf6 Bxf6 11. Be2 g6 12. c4 b4 13. Nc2 a5 14. Qd3 Bg7 15. Nde3 O-O 16. Rd1 a4 17. Qxd6 b3 18. Qxd8 Rxd8 19. Rxd8+ Nxd8 20. axb3 axb3 21. Na3 Bf8 22. Kd2 Bb4+ 23. Kc1 Nc6 24. Bd1 Nd4 25. Nd5 Bc5 26. Kd2 Kg7 27. Nb1 Ra1 28. Nbc3 Ba6 29. Kd3 Ne6 30. Rf1 Bd4 31. Be2 Nc5+ 32. Kd2 Rxf1 33. Bxf1 Bxf2 34. Ne3 h5 35. g3 Bg1 36. h3 Bh2 37. g4 h4 38. Ng2 Bg3 39. Ke3 Bb7 40. Be2 f5 41. Bf3 f4+ 42. Kd2 Ne6 43. Ne1 Bf2 44. Bg2 Be3+ 45. Kd1 Bd4 46. Nd3 Ng5 47. Kd2 f3 48. Bf1 Nxe4+ 49. Nxe4 Bxe4 50. Nc1 Bc2 0-1